[Event "*** Titled Tuesday Blitz"]
[Site "Chess.com"]
[Date "2020.04.28"]
[Round "3"]
[White "MFBerna"]
[Black "FeketeBarika"]
[Result "1-0"]
[WhiteElo "2441"]
[BlackElo "2216"]
[TimeControl "180+1"]
[EndTime "10:30:30 PDT"]
[Termination "MFBerna won by resignation"]

1. e4 {[%clk 0:03:00.9]} 1... e6 {[%clk 0:02:59.7]} 2. d4 {[%clk 0:03:00]} 2...
d5 {[%clk 0:03:00.6]} 3. exd5 {[%clk 0:02:56.2]} 3... exd5 {[%clk 0:02:58.3]} 4.
Bf4 {[%clk 0:02:56.3]} 4... Bd6 {[%clk 0:02:58.5]} 5. Bxd6 {[%clk 0:02:50.9]}
5... Qxd6 {[%clk 0:02:59.4]} 6. Nf3 {[%clk 0:02:49.5]} 6... Ne7 {[%clk
0:02:59.2]} 7. Be2 {[%clk 0:02:48.5]} 7... Nbc6 {[%clk 0:02:57.7]} 8. O-O {[%clk
0:02:47.2]} 8... Bg4 {[%clk 0:02:57.4]} 9. Re1 {[%clk 0:02:35.7]} 9... f6 {[%clk
0:02:54.4]} 10. Nbd2 {[%clk 0:01:57.3]} 10... O-O-O {[%clk 0:02:46.9]} 11. c3
{[%clk 0:01:45.3]} 11... g5 {[%clk 0:02:38.6]} 12. b4 {[%clk 0:01:45.1]} 12...
h5 {[%clk 0:02:17.8]} 13. a4 {[%clk 0:01:44.6]} 13... Bxf3 {[%clk 0:02:16.1]}
14. Nxf3 {[%clk 0:01:36.5]} 14... h4 {[%clk 0:02:11.5]} 15. a5 {[%clk
0:01:36.5]} 15... g4 {[%clk 0:02:10.7]} 16. Nd2 {[%clk 0:01:28.1]} 16... g3
{[%clk 0:02:03.2]} 17. Nf1 {[%clk 0:01:11.5]} 17... Rdg8 {[%clk 0:01:48.2]} 18.
h3 {[%clk 0:00:59.8]} 18... gxf2+ {[%clk 0:01:11.3]} 19. Kxf2 {[%clk 0:01:00.7]}
19... Qf4+ {[%clk 0:01:05.6]} 20. Bf3 {[%clk 0:00:56.7]} 20... Nf5 {[%clk
0:00:55]} 21. Qd2 {[%clk 0:00:51.4]} 21... Qd6 {[%clk 0:00:44.9]} 22. Bg4 {[%clk
0:00:50.2]} 22... Rxg4 {[%clk 0:00:38.6]} 23. hxg4 {[%clk 0:00:51.1]} 23... Ng3
{[%clk 0:00:38.5]} 24. Qe3 {[%clk 0:00:35.4]} 24... Ne4+ {[%clk 0:00:33.8]} 25.
Kg1 {[%clk 0:00:35.9]} 25... h3 {[%clk 0:00:26.8]} 26. gxh3 {[%clk 0:00:35]}
26... f5 {[%clk 0:00:23.8]} 27. Qf3 {[%clk 0:00:21.4]} 27... fxg4 {[%clk
0:00:19.1]} 28. Qxg4+ {[%clk 0:00:20.5]} 28... Kb8 {[%clk 0:00:19.3]} 29. Re3
{[%clk 0:00:14.1]} 29... Ne7 {[%clk 0:00:13.3]} 30. Rae1 {[%clk 0:00:09]} 30...
Rg8 {[%clk 0:00:12.5]} 31. Nh2 {[%clk 0:00:06.6]} 31... Rxg4+ {[%clk 0:00:11.5]}
32. Nxg4 {[%clk 0:00:07.5]} 32... a6 {[%clk 0:00:10]} 33. Rf1 {[%clk 0:00:06.4]}
33... Ka7 {[%clk 0:00:08.6]} 34. Ne5 {[%clk 0:00:06.7]} 34... Nc6 {[%clk
0:00:08]} 35. Nd3 {[%clk 0:00:05.7]} 35... Qg6+ {[%clk 0:00:07.5]} 36. Kh2
{[%clk 0:00:03.5]} 36... b6 {[%clk 0:00:08.1]} 37. Ne5 {[%clk 0:00:03.2]} 37...
Nxe5 {[%clk 0:00:07.6]} 38. dxe5 {[%clk 0:00:04.1]} 38... Qg5 {[%clk 0:00:07.3]}
39. Ref3 {[%clk 0:00:04.3]} 39... Qxe5+ {[%clk 0:00:07]} 40. Kg2 {[%clk
0:00:05]} 40... Nxc3 {[%clk 0:00:06.8]} 41. Rc1 {[%clk 0:00:04.5]} 41... Ne4
{[%clk 0:00:06.3]} 42. Rf7 {[%clk 0:00:03.5]} 42... bxa5 {[%clk 0:00:05.3]} 43.
Rcxc7+ {[%clk 0:00:03.2]} 43... Kb8 {[%clk 0:00:04.5]} 44. Rb7+ {[%clk
0:00:03.6]} 44... Kc8 {[%clk 0:00:04.6]} 45. Ra7 {[%clk 0:00:02.5]} 45... Qg5+
{[%clk 0:00:03.1]} 46. Kf3 {[%clk 0:00:02.2]} 46... Qh5+ {[%clk 0:00:02.8]} 47.
Ke3 {[%clk 0:00:02.3]} 47... Qg5+ {[%clk 0:00:03.1]} 48. Kd4 {[%clk 0:00:02.4]}
48... Qd2+ {[%clk 0:00:02.4]} 49. Ke5 {[%clk 0:00:02.8]} 49... Qc3+ {[%clk
0:00:02.2]} 50. Kxd5 {[%clk 0:00:02.8]} 50... Kb8 {[%clk 0:00:02.1]} 51. Rab7+
{[%clk 0:00:02.1]} 51... Kc8 {[%clk 0:00:02.3]} 52. Rbc7+ {[%clk 0:00:01.5]}
52... Qxc7 {[%clk 0:00:01.2]} 53. Rxc7+ {[%clk 0:00:02.4]} 53... Kxc7 {[%clk
0:00:02]} 54. bxa5 {[%clk 0:00:02]} 54... Kb7 {[%clk 0:00:01.6]} 55. Kxe4 {[%clk
0:00:02]} 55... Kc6 {[%clk 0:00:02.5]} 56. h4 {[%clk 0:00:02.8]} 56... Kb5
{[%clk 0:00:03.1]} 57. h5 {[%clk 0:00:03.7]} 57... Kxa5 {[%clk 0:00:04]} 58. h6
{[%clk 0:00:04.6]} 58... Kb4 {[%clk 0:00:04.5]} 59. h7 {[%clk 0:00:05.5]} 59...
a5 {[%clk 0:00:05]} 60. h8=Q {[%clk 0:00:06.4]} 60... a4 {[%clk 0:00:05.3]} 61.
Qa1 {[%clk 0:00:07.3]} 61... a3 {[%clk 0:00:05.2]} 62. Ke3 {[%clk 0:00:08]}
62... Kb3 {[%clk 0:00:06.1]} 63. Kd2 {[%clk 0:00:08.8]} 63... a2 {[%clk
0:00:06.3]} 64. Kc1 {[%clk 0:00:09.7]} 64... Ka3 {[%clk 0:00:06.4]} 65. Kc2
{[%clk 0:00:10.4]} 65... Kb4 {[%clk 0:00:07.3]} 66. Qxa2 {[%clk 0:00:10.8]}
66... Kb5 {[%clk 0:00:08.2]} 67. Qb2+ {[%clk 0:00:11.7]} 1-0

[Event "*** Titled Tuesday Blitz"]
[Site "Chess.com"]
[Date "2020.04.28"]
[Round "3"]
[White "vinodbhagwat1976"]
[Black "damayito"]
[Result "1-0"]
[WhiteElo "2261"]
[BlackElo "1644"]
[TimeControl "180+1"]
[EndTime "10:30:31 PDT"]
[Termination "vinodbhagwat1976 won by resignation"]

1. d4 {[%clk 0:03:00.9]} 1... d5 {[%clk 0:02:53.3]} 2. c4 {[%clk 0:03:00.3]}
2... c6 {[%clk 0:02:52.6]} 3. Nf3 {[%clk 0:02:58.6]} 3... Nf6 {[%clk 0:02:52.3]}
4. e3 {[%clk 0:02:55.4]} 4... e6 {[%clk 0:02:52.4]} 5. b3 {[%clk 0:02:52.8]}
5... Bb4+ {[%clk 0:02:48.5]} 6. Nbd2 {[%clk 0:02:51.7]} 6... O-O {[%clk
0:02:47.7]} 7. Bd3 {[%clk 0:02:50]} 7... Nbd7 {[%clk 0:02:45.8]} 8. O-O {[%clk
0:02:49.2]} 8... Re8 {[%clk 0:02:42.7]} 9. Bb2 {[%clk 0:02:48.1]} 9... Qe7
{[%clk 0:02:40.9]} 10. e4 {[%clk 0:02:33.4]} 10... dxe4 {[%clk 0:02:39.9]} 11.
Nxe4 {[%clk 0:02:32.9]} 11... Nxe4 {[%clk 0:02:40]} 12. Bxe4 {[%clk 0:02:33.1]}
12... Nf6 {[%clk 0:02:40.7]} 13. Bc2 {[%clk 0:02:32.4]} 13... Ba3 {[%clk
0:02:38.1]} 14. Bc3 {[%clk 0:02:28.3]} 14... Bb4 {[%clk 0:02:37.2]} 15. Bb2
{[%clk 0:02:19.4]} 15... Bd7 {[%clk 0:02:36.6]} 16. Qd3 {[%clk 0:02:03.3]} 16...
Ba3 {[%clk 0:02:29.6]} 17. Bc3 {[%clk 0:02:00.8]} 17... Bb4 {[%clk 0:02:29.1]}
18. Bb2 {[%clk 0:01:55.6]} 18... Ba3 {[%clk 0:02:29.1]} 19. Bc3 {[%clk
0:01:55.6]} 19... Bb4 {[%clk 0:02:29.1]} 20. Rfe1 {[%clk 0:01:49.6]} 20... Bxc3
{[%clk 0:02:27.7]} 21. Qxc3 {[%clk 0:01:48.3]} 21... Qd6 {[%clk 0:02:13.1]} 22.
b4 {[%clk 0:01:34.2]} 22... Qf4 {[%clk 0:02:06.6]} 23. g3 {[%clk 0:01:28.1]}
23... Qg4 {[%clk 0:02:05]} 24. Ne5 {[%clk 0:01:27.1]} 24... Qh5 {[%clk
0:02:00.2]} 25. Bd1 {[%clk 0:01:07.6]} 25... Qh6 {[%clk 0:01:56.8]} 26. Bf3
{[%clk 0:01:03.6]} 26... Rad8 {[%clk 0:01:55.1]} 27. Rad1 {[%clk 0:01:00.2]}
27... Bc8 {[%clk 0:01:46.3]} 28. a4 {[%clk 0:00:57.7]} 28... Nd7 {[%clk
0:01:46.1]} 29. b5 {[%clk 0:00:53.6]} 29... Nxe5 {[%clk 0:01:44.3]} 30. dxe5
{[%clk 0:00:51.9]} 30... Rxd1 {[%clk 0:01:43.1]} 31. Rxd1 {[%clk 0:00:51.3]}
31... cxb5 {[%clk 0:01:42.4]} 32. cxb5 {[%clk 0:00:40.9]} 32... Qg5 {[%clk
0:01:42.9]} 33. Qc7 {[%clk 0:00:39.4]} 33... h6 {[%clk 0:01:37.6]} 34. h4 {[%clk
0:00:34.3]} 34... Qf5 {[%clk 0:01:28.6]} 35. Bg2 {[%clk 0:00:23.9]} 35... a6
{[%clk 0:01:21.5]} 36. Rd8 {[%clk 0:00:21.3]} 36... Qb1+ {[%clk 0:01:03.8]} 37.
Kh2 {[%clk 0:00:20.6]} 37... Rxd8 {[%clk 0:00:55.9]} 38. Qxd8+ {[%clk
0:00:20.7]} 38... Kh7 {[%clk 0:00:55.7]} 39. Qxc8 {[%clk 0:00:20.9]} 39... axb5
{[%clk 0:00:51.5]} 40. axb5 {[%clk 0:00:20.7]} 40... Qxb5 {[%clk 0:00:49.9]} 41.
Qc7 {[%clk 0:00:20.8]} 41... Kg6 {[%clk 0:00:45.1]} 42. Be4+ {[%clk 0:00:19.6]}
42... f5 {[%clk 0:00:43.8]} 43. exf6+ {[%clk 0:00:19.3]} 43... Kxf6 {[%clk
0:00:43.9]} 44. Qf4+ {[%clk 0:00:18.7]} 44... Ke7 {[%clk 0:00:42.4]} 45. Qc7+
{[%clk 0:00:18.3]} 45... Kf6 {[%clk 0:00:41.7]} 46. Qxb7 {[%clk 0:00:17.4]}
46... Qe2 {[%clk 0:00:34.9]} 47. Kg2 {[%clk 0:00:17.3]} 47... Qg4 {[%clk
0:00:32.9]} 48. Bf3 {[%clk 0:00:16.4]} 48... Qd4 {[%clk 0:00:31.5]} 49. h5
{[%clk 0:00:16.2]} 49... Qc5 {[%clk 0:00:27.9]} 50. Qc6 {[%clk 0:00:15.6]} 50...
Qa5 {[%clk 0:00:26.2]} 51. Qe4 {[%clk 0:00:13.9]} 51... Ke7 {[%clk 0:00:25.8]}
52. Qg6 {[%clk 0:00:13.7]} 52... Qa1 {[%clk 0:00:25.1]} 53. Bg4 {[%clk
0:00:13.2]} 53... Qa8+ {[%clk 0:00:22.6]} 54. Kh2 {[%clk 0:00:11.6]} 54... Qd5
{[%clk 0:00:21.2]} 55. Qxg7+ {[%clk 0:00:11.3]} 55... Kd6 {[%clk 0:00:21.5]} 56.
Qf8+ {[%clk 0:00:10.7]} 56... Kc6 {[%clk 0:00:20.6]} 57. Bf3 {[%clk 0:00:10.2]}
57... Qxf3 {[%clk 0:00:17.6]} 58. Qxf3+ {[%clk 0:00:09.3]} 58... Kd6 {[%clk
0:00:17.4]} 59. Qf6 {[%clk 0:00:09.5]} 59... Kd5 {[%clk 0:00:17.3]} 60. Qxh6
{[%clk 0:00:09.7]} 1-0

[Event "*** Titled Tuesday Blitz"]
[Site "Chess.com"]
[Date "2020.04.28"]
[Round "3"]
[White "jacky72"]
[Black "grandemestregringo"]
[Result "1/2-1/2"]
[WhiteElo "2708"]
[BlackElo "2435"]
[TimeControl "180+1"]
[EndTime "10:30:32 PDT"]
[Termination "Game drawn - insufficient material"]

1. d4 {[%clk 0:03:00.9]} 1... d5 {[%clk 0:02:58.4]} 2. c4 {[%clk 0:03:01.2]}
2... c6 {[%clk 0:02:59]} 3. Nf3 {[%clk 0:02:59.8]} 3... Nf6 {[%clk 0:02:59.6]}
4. Nc3 {[%clk 0:02:59.3]} 4... dxc4 {[%clk 0:02:58.5]} 5. e4 {[%clk 0:02:59.9]}
5... b5 {[%clk 0:02:57.6]} 6. Be2 {[%clk 0:03:00.4]} 6... e6 {[%clk 0:02:57.4]}
7. O-O {[%clk 0:03:00.7]} 7... Be7 {[%clk 0:02:57]} 8. a4 {[%clk 0:02:53.1]}
8... b4 {[%clk 0:02:56]} 9. e5 {[%clk 0:02:53.6]} 9... bxc3 {[%clk 0:02:55.9]}
10. exf6 {[%clk 0:02:53.3]} 10... Bxf6 {[%clk 0:02:45.1]} 11. bxc3 {[%clk
0:02:54.2]} 11... O-O {[%clk 0:02:45.5]} 12. Ba3 {[%clk 0:02:51.7]} 12... Be7
{[%clk 0:02:37.9]} 13. Ne5 {[%clk 0:02:45.2]} 13... Bxa3 {[%clk 0:02:17.5]} 14.
Rxa3 {[%clk 0:02:46.1]} 14... Nd7 {[%clk 0:02:15.9]} 15. Nxc4 {[%clk 0:02:30.5]}
15... Qc7 {[%clk 0:02:13]} 16. Ne3 {[%clk 0:02:26]} 16... Rd8 {[%clk 0:02:08.7]}
17. Bf3 {[%clk 0:02:25.2]} 17... Ba6 {[%clk 0:02:01.8]} 18. Re1 {[%clk
0:02:22.8]} 18... Rab8 {[%clk 0:02:00.8]} 19. Rb3 {[%clk 0:02:18.7]} 19... Nb6
{[%clk 0:01:30.2]} 20. Rb1 {[%clk 0:01:52]} 20... Nd5 {[%clk 0:01:19.1]} 21. Qc2
{[%clk 0:01:42.1]} 21... Qa5 {[%clk 0:01:18.1]} 22. c4 {[%clk 0:01:34.8]} 22...
Ne7 {[%clk 0:00:36.8]} 23. h3 {[%clk 0:01:29]} 23... h6 {[%clk 0:00:34.1]} 24.
Be4 {[%clk 0:01:28.1]} 24... Rb6 {[%clk 0:00:28.9]} 25. c5 {[%clk 0:00:51.5]}
25... Rb4 {[%clk 0:00:25.2]} 26. Rxb4 {[%clk 0:00:47.7]} 26... Qxb4 {[%clk
0:00:25]} 27. Rb1 {[%clk 0:00:48.6]} 27... Qa5 {[%clk 0:00:20.1]} 28. Nc4 {[%clk
0:00:48.1]} 28... Bxc4 {[%clk 0:00:17.8]} 29. Qxc4 {[%clk 0:00:49]} 29... Nd5
{[%clk 0:00:16.5]} 30. Bxd5 {[%clk 0:00:44.3]} 30... Rxd5 {[%clk 0:00:15.6]} 31.
Qd3 {[%clk 0:00:39.9]} 31... g6 {[%clk 0:00:15.5]} 32. Qe3 {[%clk 0:00:37.9]}
32... Kg7 {[%clk 0:00:15.3]} 33. Rb7 {[%clk 0:00:26]} 33... Rf5 {[%clk
0:00:13.4]} 34. Qxe6 {[%clk 0:00:21.9]} 34... Qxa4 {[%clk 0:00:12.5]} 35. Qe3
{[%clk 0:00:17.7]} 35... a5 {[%clk 0:00:11.2]} 36. Kh2 {[%clk 0:00:17.5]} 36...
Qc4 {[%clk 0:00:09.9]} 37. Rb8 {[%clk 0:00:16.9]} 37... Qe6 {[%clk 0:00:04.1]}
38. Qxe6 {[%clk 0:00:17.1]} 38... fxe6 {[%clk 0:00:05]} 39. Ra8 {[%clk
0:00:11.8]} 39... Rxf2 {[%clk 0:00:03.9]} 40. Rxa5 {[%clk 0:00:11.3]} 40... Rd2
{[%clk 0:00:04.3]} 41. Ra6 {[%clk 0:00:10.3]} 41... Kf6 {[%clk 0:00:04.7]} 42.
Rxc6 {[%clk 0:00:11.2]} 42... Rxd4 {[%clk 0:00:05.3]} 43. Rc8 {[%clk 0:00:10.2]}
43... Rc4 {[%clk 0:00:05.8]} 44. Kg3 {[%clk 0:00:10]} 44... h5 {[%clk
0:00:05.9]} 45. Kf3 {[%clk 0:00:09.7]} 45... Ke5 {[%clk 0:00:06.2]} 46. Rg8
{[%clk 0:00:05.8]} 46... Rxc5 {[%clk 0:00:06]} 47. Rxg6 {[%clk 0:00:06.2]} 47...
Rc3+ {[%clk 0:00:05.9]} 48. Kf2 {[%clk 0:00:06.2]} 48... Kf5 {[%clk 0:00:06.4]}
49. Rh6 {[%clk 0:00:07.1]} 49... Kg5 {[%clk 0:00:05.9]} 50. Rh8 {[%clk 0:00:08]}
50... Rc2+ {[%clk 0:00:06.1]} 51. Kg3 {[%clk 0:00:07.5]} 51... Rc3+ {[%clk
0:00:06.4]} 52. Kh2 {[%clk 0:00:07.6]} 52... Rc6 {[%clk 0:00:05.3]} 53. Rg8+
{[%clk 0:00:08.5]} 53... Kh6 {[%clk 0:00:05.5]} 54. Kg3 {[%clk 0:00:09.4]} 54...
Rc3+ {[%clk 0:00:05.3]} 55. Kf4 {[%clk 0:00:09.4]} 55... Rc5 {[%clk 0:00:04.6]}
56. Ke4 {[%clk 0:00:08.7]} 56... Rg5 {[%clk 0:00:03.9]} 57. Rxg5 {[%clk
0:00:02.5]} 57... Kxg5 {[%clk 0:00:04.8]} 58. g3 {[%clk 0:00:03.4]} 58... Kf6
{[%clk 0:00:05.2]} 59. Kf4 {[%clk 0:00:02.9]} 59... e5+ {[%clk 0:00:05.5]} 60.
Ke4 {[%clk 0:00:03.1]} 60... Ke6 {[%clk 0:00:06.4]} 61. g4 {[%clk 0:00:02.4]}
61... hxg4 {[%clk 0:00:06.3]} 62. hxg4 {[%clk 0:00:03.3]} 62... Kf6 {[%clk
0:00:07.1]} 63. g5+ {[%clk 0:00:04.2]} 63... Kxg5 {[%clk 0:00:07.6]} 64. Kxe5
{[%clk 0:00:05.1]} 1/2-1/2

[Event "*** Titled Tuesday Blitz"]
[Site "Chess.com"]
[Date "2020.04.28"]
[Round "3"]
[White "tamarozi99"]
[Black "inegrepus"]
[Result "1/2-1/2"]
[WhiteElo "1960"]
[BlackElo "2275"]
[TimeControl "180+1"]
[EndTime "10:30:32 PDT"]
[Termination "Game drawn - insufficient material"]

1. e4 {[%clk 0:03:00.9]} 1... e5 {[%clk 0:02:59.9]} 2. Nf3 {[%clk 0:02:59.2]}
2... Nc6 {[%clk 0:03:00]} 3. Bb5 {[%clk 0:02:55.5]} 3... f5 {[%clk 0:02:59.4]}
4. d3 {[%clk 0:02:53.6]} 4... fxe4 {[%clk 0:02:58.8]} 5. dxe4 {[%clk 0:02:53.8]}
5... Nf6 {[%clk 0:02:59]} 6. Qd3 {[%clk 0:02:48.7]} 6... d6 {[%clk 0:02:54.5]}
7. Qc4 {[%clk 0:02:24.1]} 7... Bd7 {[%clk 0:02:50]} 8. Nc3 {[%clk 0:02:23.6]}
8... Ne7 {[%clk 0:02:32.9]} 9. Be3 {[%clk 0:02:09.3]} 9... c6 {[%clk 0:02:30.2]}
10. Qd3 {[%clk 0:01:56]} 10... cxb5 {[%clk 0:02:17.2]} 11. Qxd6 {[%clk
0:01:54.9]} 11... Ng6 {[%clk 0:02:07.9]} 12. Qd2 {[%clk 0:01:53.6]} 12... Bc6
{[%clk 0:02:03]} 13. O-O-O {[%clk 0:01:25.1]} 13... Qxd2+ {[%clk 0:02:00.9]} 14.
Nxd2 {[%clk 0:01:24.9]} 14... b4 {[%clk 0:01:59.8]} 15. Ne2 {[%clk 0:01:18.7]}
15... Nxe4 {[%clk 0:01:56.5]} 16. Nxe4 {[%clk 0:01:18.7]} 16... Bxe4 {[%clk
0:01:56.6]} 17. f3 {[%clk 0:01:19.3]} 17... Bc6 {[%clk 0:01:55.9]} 18. Ng3
{[%clk 0:01:18.1]} 18... Be7 {[%clk 0:01:44.3]} 19. Nf5 {[%clk 0:01:16.2]} 19...
O-O {[%clk 0:01:44.2]} 20. Nxe7+ {[%clk 0:01:14.6]} 20... Nxe7 {[%clk
0:01:45.1]} 21. Bc5 {[%clk 0:01:14.8]} 21... Rfe8 {[%clk 0:01:43.2]} 22. Bxb4
{[%clk 0:01:14.2]} 22... Nd5 {[%clk 0:01:41.7]} 23. Bd2 {[%clk 0:01:11.6]} 23...
Nf4 {[%clk 0:01:37.2]} 24. Kb1 {[%clk 0:00:56.3]} 24... Rad8 {[%clk 0:01:32.5]}
25. Rhg1 {[%clk 0:00:51.3]} 25... Ne2 {[%clk 0:01:25]} 26. Rge1 {[%clk
0:00:46.5]} 26... Nd4 {[%clk 0:01:21.8]} 27. Bc3 {[%clk 0:00:41.3]} 27... Kf7
{[%clk 0:01:17.1]} 28. b3 {[%clk 0:00:41.2]} 28... Ne2 {[%clk 0:00:54.7]} 29.
Bb2 {[%clk 0:00:25.9]} 29... Rxd1+ {[%clk 0:00:52.2]} 30. Rxd1 {[%clk
0:00:26.8]} 30... e4 {[%clk 0:00:43.5]} 31. fxe4 {[%clk 0:00:22.3]} 31... Rxe4
{[%clk 0:00:43.3]} 32. Rf1+ {[%clk 0:00:21.3]} 32... Kg6 {[%clk 0:00:40.4]} 33.
g3 {[%clk 0:00:20.7]} 33... Nd4 {[%clk 0:00:35.4]} 34. Rd1 {[%clk 0:00:17.2]}
34... Nf5 {[%clk 0:00:33.3]} 35. a4 {[%clk 0:00:10.4]} 35... Re2 {[%clk
0:00:31.8]} 36. Rd3 {[%clk 0:00:09.4]} 36... Be4 {[%clk 0:00:29.5]} 37. Rc3
{[%clk 0:00:08.6]} 37... Ne3 {[%clk 0:00:25.7]} 38. Rc7 {[%clk 0:00:08.4]} 38...
Rxc2 {[%clk 0:00:23.3]} 39. Rxg7+ {[%clk 0:00:06.9]} 39... Kh6 {[%clk
0:00:22.6]} 40. Re7 {[%clk 0:00:06.9]} 40... Rxb2+ {[%clk 0:00:15.1]} 41. Kxb2
{[%clk 0:00:07]} 41... Nd1+ {[%clk 0:00:13.8]} 42. Kc1 {[%clk 0:00:06.5]} 42...
Bf3 {[%clk 0:00:12.7]} 43. Rf7 {[%clk 0:00:07]} 43... Bh5 {[%clk 0:00:11.7]} 44.
Rxb7 {[%clk 0:00:06.3]} 44... Nf2 {[%clk 0:00:09.4]} 45. Rxa7 {[%clk 0:00:06.4]}
45... Ng4 {[%clk 0:00:09.3]} 46. h4 {[%clk 0:00:06]} 46... Ne3 {[%clk
0:00:08.5]} 47. Rc7 {[%clk 0:00:06]} 47... Nf5 {[%clk 0:00:08.3]} 48. Rc6+
{[%clk 0:00:06.3]} 48... Kg7 {[%clk 0:00:07.7]} 49. a5 {[%clk 0:00:07.2]} 49...
Nxg3 {[%clk 0:00:07.2]} 50. Rc7+ {[%clk 0:00:07.3]} 50... Kf6 {[%clk 0:00:06.5]}
51. a6 {[%clk 0:00:08.2]} 51... Bf3 {[%clk 0:00:05.9]} 52. a7 {[%clk 0:00:08.5]}
52... h5 {[%clk 0:00:05.3]} 53. Rc8 {[%clk 0:00:08.4]} 53... Nf5 {[%clk
0:00:04.8]} 54. a8=Q {[%clk 0:00:08]} 54... Bxa8 {[%clk 0:00:04.7]} 55. Rxa8
{[%clk 0:00:08.9]} 55... Nxh4 {[%clk 0:00:05]} 56. Ra5 {[%clk 0:00:09.2]} 56...
Nf5 {[%clk 0:00:04.6]} 57. Kd2 {[%clk 0:00:09.6]} 57... h4 {[%clk 0:00:05]} 58.
Ke2 {[%clk 0:00:09.8]} 58... Nd4+ {[%clk 0:00:04.5]} 59. Kf2 {[%clk 0:00:09.6]}
59... Nxb3 {[%clk 0:00:04.7]} 60. Ra6+ {[%clk 0:00:10.1]} 60... Kg5 {[%clk
0:00:04.5]} 61. Kg2 {[%clk 0:00:11]} 61... Nc5 {[%clk 0:00:04]} 62. Ra8 {[%clk
0:00:11.7]} 62... Ne4 {[%clk 0:00:03.9]} 63. Rh8 {[%clk 0:00:12]} 63... Nf6
{[%clk 0:00:03.3]} 64. Rxh4 {[%clk 0:00:11.4]} 64... Kxh4 {[%clk 0:00:02.9]}
1/2-1/2

[Event "*** Titled Tuesday Blitz"]
[Site "Chess.com"]
[Date "2020.04.28"]
[Round "3"]
[White "hamelekh"]
[Black "Camels1981"]
[Result "1-0"]
[WhiteElo "2697"]
[BlackElo "2202"]
[TimeControl "180+1"]
[EndTime "10:30:33 PDT"]
[Termination "hamelekh won by resignation"]

1. e4 {[%clk 0:02:59.3]} 1... c5 {[%clk 0:02:58.1]} 2. Nc3 {[%clk 0:02:53.1]}
2... d6 {[%clk 0:02:55.6]} 3. g3 {[%clk 0:02:52.4]} 3... Nc6 {[%clk 0:02:55.6]}
4. Bg2 {[%clk 0:02:52.8]} 4... g6 {[%clk 0:02:55.1]} 5. Nge2 {[%clk 0:02:53.2]}
5... Bg7 {[%clk 0:02:55.3]} 6. O-O {[%clk 0:02:53.9]} 6... e5 {[%clk 0:02:55.4]}
7. f4 {[%clk 0:02:52.8]} 7... Nge7 {[%clk 0:02:55.5]} 8. d3 {[%clk 0:02:52.7]}
8... O-O {[%clk 0:02:54.8]} 9. Be3 {[%clk 0:02:51.3]} 9... Nd4 {[%clk
0:02:53.3]} 10. Qd2 {[%clk 0:02:51.3]} 10... f5 {[%clk 0:02:52.5]} 11. fxe5
{[%clk 0:02:46.8]} 11... dxe5 {[%clk 0:02:49.8]} 12. exf5 {[%clk 0:02:47]} 12...
gxf5 {[%clk 0:02:44.6]} 13. Bg5 {[%clk 0:02:43.3]} 13... Qc7 {[%clk 0:02:37.4]}
14. Nd5 {[%clk 0:02:27.8]} 14... Nxd5 {[%clk 0:02:36.6]} 15. Bxd5+ {[%clk
0:02:28.7]} 15... Kh8 {[%clk 0:02:37.1]} 16. c3 {[%clk 0:02:28.4]} 16... Nxe2+
{[%clk 0:02:34.3]} 17. Qxe2 {[%clk 0:02:28.6]} 17... Bd7 {[%clk 0:02:32.4]} 18.
Qf3 {[%clk 0:02:18.4]} 18... Rac8 {[%clk 0:02:16.5]} 19. Rae1 {[%clk 0:02:01]}
19... Bc6 {[%clk 0:02:16.4]} 20. Bxc6 {[%clk 0:01:55.3]} 20... Qxc6 {[%clk
0:02:17.3]} 21. Qxc6 {[%clk 0:01:55.5]} 21... Rxc6 {[%clk 0:02:17]} 22. Rf3
{[%clk 0:01:55.9]} 22... h6 {[%clk 0:02:13.5]} 23. Bh4 {[%clk 0:01:53.5]} 23...
Kh7 {[%clk 0:02:09.4]} 24. Ref1 {[%clk 0:01:53]} 24... Kg6 {[%clk 0:02:09.5]}
25. g4 {[%clk 0:01:42.9]} 25... f4 {[%clk 0:02:08.1]} 26. Kf2 {[%clk 0:01:33.3]}
26... Rd6 {[%clk 0:02:04.5]} 27. Ke2 {[%clk 0:01:31.8]} 27... Rf7 {[%clk
0:02:04.3]} 28. Bf2 {[%clk 0:01:28.4]} 28... b6 {[%clk 0:02:02.5]} 29. h4 {[%clk
0:01:24.6]} 29... Rfd7 {[%clk 0:02:01.1]} 30. h5+ {[%clk 0:01:24.3]} 30... Kf7
{[%clk 0:02:00.8]} 31. d4 {[%clk 0:01:17.9]} 31... cxd4 {[%clk 0:01:59.3]} 32.
cxd4 {[%clk 0:01:17.8]} 32... Ke6 {[%clk 0:01:54.9]} 33. Bg1 {[%clk 0:01:17.7]}
33... Bf6 {[%clk 0:01:46]} 34. Ra3 {[%clk 0:01:05]} 34... exd4 {[%clk
0:01:37.2]} 35. Kd3 {[%clk 0:01:03.5]} 35... Bg5 {[%clk 0:01:32.4]} 36. Ra4
{[%clk 0:01:01.3]} 36... b5 {[%clk 0:00:41.8]} 37. Rxd4 {[%clk 0:00:59.3]} 37...
Bf6 {[%clk 0:00:34.8]} 38. Rxd6+ {[%clk 0:00:59.4]} 38... Rxd6+ {[%clk
0:00:35.7]} 39. Ke4 {[%clk 0:01:00.3]} 39... Bxb2 {[%clk 0:00:35.1]} 40. Bxa7
{[%clk 0:00:54.5]} 40... Ra6 {[%clk 0:00:34.1]} 41. Bc5 {[%clk 0:00:44.7]} 41...
Ra4+ {[%clk 0:00:33.8]} 42. Kd3 {[%clk 0:00:42]} 42... Kd5 {[%clk 0:00:32.5]}
43. Bf8 {[%clk 0:00:41.5]} 43... Be5 {[%clk 0:00:30]} 44. Bxh6 {[%clk
0:00:40.1]} 44... Ra3+ {[%clk 0:00:29.5]} 45. Ke2 {[%clk 0:00:36.8]} 45... Rxa2+
{[%clk 0:00:30]} 46. Kf3 {[%clk 0:00:37]} 46... Ra3+ {[%clk 0:00:30.1]} 47. Kf2
{[%clk 0:00:37.1]} 47... Bd4+ {[%clk 0:00:29.5]} 48. Ke2 {[%clk 0:00:35.9]}
48... Ra2+ {[%clk 0:00:26.5]} 49. Kf3 {[%clk 0:00:35.9]} 49... Be5 {[%clk
0:00:20.8]} 50. Bxf4 {[%clk 0:00:34]} 50... Ra3+ {[%clk 0:00:20.5]} 51. Kg2
{[%clk 0:00:33.7]} 51... Ra2+ {[%clk 0:00:19.1]} 52. Kg3 {[%clk 0:00:33.8]}
52... Ra3+ {[%clk 0:00:19.4]} 53. Kh4 {[%clk 0:00:34]} 53... Bd4 {[%clk
0:00:15.9]} 54. g5 {[%clk 0:00:33.2]} 54... Ke4 {[%clk 0:00:14.4]} 55. Kg4
{[%clk 0:00:32.4]} 55... b4 {[%clk 0:00:09.8]} 56. Re1+ {[%clk 0:00:32.7]} 56...
Kd5 {[%clk 0:00:09.6]} 57. g6 {[%clk 0:00:31.4]} 57... b3 {[%clk 0:00:09.9]} 58.
h6 {[%clk 0:00:31.5]} 58... b2 {[%clk 0:00:10.1]} 59. g7 {[%clk 0:00:31.4]}
59... Ra8 {[%clk 0:00:06.2]} 60. Kf5 {[%clk 0:00:31.4]} 60... Bc3 {[%clk
0:00:04.2]} 61. Rb1 {[%clk 0:00:28.4]} 61... Kc4 {[%clk 0:00:04.3]} 62. Be5
{[%clk 0:00:26.2]} 62... Bxe5 {[%clk 0:00:03.3]} 63. Kxe5 {[%clk 0:00:26.3]}
63... Kc3 {[%clk 0:00:04.2]} 64. h7 {[%clk 0:00:25.9]} 64... Kc2 {[%clk
0:00:04.6]} 65. Rxb2+ {[%clk 0:00:26.1]} 65... Kxb2 {[%clk 0:00:03.2]} 66. g8=Q
{[%clk 0:00:26.5]} 1-0